{"text_format":"3","workbook":"xlsx","n_sheets":2,"sheets":["2019 Participant List","2019 Data Validation"],"not_rendered":{"defined_names":14},"read":"whole","date_system":"1900"}

{"sheet":"2019 Participant List","index":0,"n_rows":97,"n_cols":29,"rows_kept":97,"merged":[[3,3,3,5]]}
["2019 JULY-AUGUST UBC Vancouver Summer Programs Group Registration Form",{"$nulls":27},"July Registration Form"]
["Personal information provided on your registration form is collected pursuant to section 26(c) of the Freedom of Information and Protection of Privacy Act (“FIPPA”). The information will be used for the purposes of: admission; registration; and and academic progress. UBC collects, uses, retains and discloses information in accordance with FIPPA. UBC may share and disclose personal information within the University in order to carry out its mandate and operations. "]
["First Name","Last Name","Email","Year of Birth","Month of Birth","Date of Birth","Citizenship","Gender","Email (Alternate)","Student Telephone No. \n(Country Code)","Student Telephone No. ","Name of University","University Year Level","University Degree Program","University Major","Summer Program Session","Package Code","Faculty","Package Name","Administrator Office Contact Name","Administrator Contact Position Title","Administrator Office Address","Administrator Office City","Administrator Office Country or Region","Administrator Office Postal Code","Administrator Email Address","Administrator Telephone No. \n(Country Code)","Administrator Telephone Number","Comments (Registration Form)"]
["This is your given name (名) as on your government issued identification.","This is your family name or surname (姓) as on your government issued identification","This is the primary email address where all correspondances will be sent.  Use an address that you will be able to access from your home country as well as in Canada. Please add to your safe lists all addresses from @ubc.ca, @apro.ubc.ca.  Registration confirmation will come from @fluidreview.com","Please enter your date of birth in the following format using the dropdown menus (YYYY/MM/DD)",null,null,"Choose the country from the drop down menu where you hold citizenship.  \n\nIf you hold more than one citizenship, please indicate this in the comments column","Choose Male or Female from the drop down menu","An alternate email address is optional.  UBC will only send alerts that VSP messages are not getting through or that students need to respond to messages in their permanent email inbox. Please check with UBC Asia Pacific Regional Office if you have not received documents.","Provide a contact number you can be reached at.  This can be your cellular or home phone.\n\nChoose your country code from the dropdown menu.","Provide your contact number which you can be reached.  This can be your cellular or home phone.\n\nPlease enter your phone number here.","Enter the name of your university.","Choose the  year level you are currently in at the time of application.","This is the area of study which you will graduate from","This is the academic concentration or discipline you have chosen in your undergraduate studies","This registration form is for the July 13 - August 13, 2019 session.","Choose your preferred package from the drop down menu","Column will auto complete once package is selected.","This column will auto complete according to the package code.","This is the university person who can be contacted with regards to your VSP participation and who is to receive your grades letter.  ","This is the position of your university contact. ","This is a mailing address.","This is the city of your University. Please choose from the dropdown menu. \n\nIf your city is not available, type it in. ","This is the country of your University. Please choose from the dropdown menu.","This is the postal code for your administrator contact's mailing address.","This is a university email address.","This is a university telephone number. Please enter country code here.","This is the telephone number. Please include the area code.","Include any details or notes here.  Include dual citizenship comments here."]
["Sample","Student","sample.student@exampleuniversity.com",1999,10,27,"United Kingdom ","Male","s.student@exampleuniversity.com","Hong Kong (+852)","2111-4401","Example University",3,"Arts","Political Science","July 13-August 13, 2019","ELEC A JULY",{"$f":"VLOOKUP(Q5,course1,5,)","v":"Applied Science – Electrical and Computer Engineering"},{"$f":"VLOOKUP(Q5,course1,2,)","v":"Package A - Introduction to Electrical and Computer Engineering"},"Sample Administrator","Student Advisor, International Office","University House, 1908 Rainbow Way","Disneyland","United States","000 000","sample.administrator@exampleuniversity.com","United States (+1)","888-000-0000"]
[{"$nulls":15},"July 13-August 13, 2019",null,{"$f":"VLOOKUP(Q6,course1,5,)","v":{"$error":"#N/A"}},{"$f":"VLOOKUP(Q6,course1,2,)","v":{"$error":"#N/A"}}]
[{"$nulls":15},"July 13-August 13, 2019",null,{"$error":"#N/A"},{"$error":"#N/A"}]
[{"$nulls":15},"July 13-August 13, 2019",null,{"$error":"#N/A"},{"$error":"#N/A"}]
[{"$nulls":15},"July 13-August 13, 2019",null,{"$error":"#N/A"},{"$error":"#N/A"}]
[{"$nulls":15},"July 13-August 13, 2019",null,{"$error":"#N/A"},{"$error":"#N/A"}]
[{"$nulls":17},{"$error":"#N/A"},{"$error":"#N/A"}]
[{"$nulls":17},{"$error":"#N/A"},{"$error":"#N/A"}]
[{"$nulls":17},{"$error":"#N/A"},{"$error":"#N/A"}]
[{"$nulls":17},{"$error":"#N/A"},{"$error":"#N/A"}]
[{"$nulls":17},{"$error":"#N/A"},{"$error":"#N/A"}]
[{"$nulls":17},{"$error":"#N/A"},{"$error":"#N/A"}]
[{"$nulls":17},{"$error":"#N/A"},{"$error":"#N/A"}]
[{"$nulls":17},{"$error":"#N/A"},{"$error":"#N/A"}]
[{"$nulls":17},{"$error":"#N/A"},{"$error":"#N/A"}]
[{"$nulls":17},{"$error":"#N/A"},{"$error":"#N/A"}]
[{"$nulls":17},{"$error":"#N/A"},{"$error":"#N/A"}]
[{"$nulls":17},{"$error":"#N/A"},{"$error":"#N/A"}]
[{"$nulls":17},{"$error":"#N/A"},{"$error":"#N/A"}]
[{"$nulls":17},{"$error":"#N/A"},{"$error":"#N/A"}]
[{"$nulls":17},{"$error":"#N/A"},{"$error":"#N/A"}]
[{"$nulls":17},{"$error":"#N/A"},{"$error":"#N/A"}]
[{"$nulls":17},{"$error":"#N/A"},{"$error":"#N/A"}]
[{"$nulls":17},{"$error":"#N/A"},{"$error":"#N/A"}]
[{"$nulls":17},{"$error":"#N/A"},{"$error":"#N/A"}]
[{"$nulls":17},{"$error":"#N/A"},{"$error":"#N/A"}]
[{"$nulls":17},{"$error":"#N/A"},{"$error":"#N/A"}]
[{"$nulls":17},{"$error":"#N/A"},{"$error":"#N/A"}]
[{"$nulls":17},{"$error":"#N/A"},{"$error":"#N/A"}]
[{"$nulls":17},{"$error":"#N/A"},{"$error":"#N/A"}]
[{"$nulls":17},{"$error":"#N/A"},{"$error":"#N/A"}]
[{"$nulls":17},{"$error":"#N/A"},{"$error":"#N/A"}]
[{"$nulls":17},{"$f":"VLOOKUP(Q37,course1,5,)","v":{"$error":"#N/A"}},{"$f":"VLOOKUP(Q37,course1,2,)","v":{"$error":"#N/A"}}]
[{"$nulls":17},{"$error":"#N/A"},{"$error":"#N/A"}]
[{"$nulls":17},{"$error":"#N/A"},{"$error":"#N/A"}]
[{"$nulls":17},{"$error":"#N/A"},{"$error":"#N/A"}]
[{"$nulls":17},{"$error":"#N/A"},{"$error":"#N/A"}]
[{"$nulls":17},{"$error":"#N/A"},{"$error":"#N/A"}]
[{"$nulls":17},{"$error":"#N/A"},{"$error":"#N/A"}]
[{"$nulls":17},{"$error":"#N/A"},{"$error":"#N/A"}]
[{"$nulls":17},{"$error":"#N/A"},{"$error":"#N/A"}]
[{"$nulls":17},{"$error":"#N/A"},{"$error":"#N/A"}]
[{"$nulls":17},{"$error":"#N/A"},{"$error":"#N/A"}]
[{"$nulls":17},{"$error":"#N/A"},{"$error":"#N/A"}]
[{"$nulls":17},{"$error":"#N/A"},{"$error":"#N/A"}]
[{"$nulls":17},{"$error":"#N/A"},{"$error":"#N/A"}]
[{"$nulls":17},{"$error":"#N/A"},{"$error":"#N/A"}]
[{"$nulls":17},{"$error":"#N/A"},{"$error":"#N/A"}]
[{"$nulls":17},{"$error":"#N/A"},{"$error":"#N/A"}]
[{"$nulls":17},{"$error":"#N/A"},{"$error":"#N/A"}]
[{"$nulls":17},{"$error":"#N/A"},{"$error":"#N/A"}]
[{"$nulls":17},{"$error":"#N/A"},{"$error":"#N/A"}]
[{"$nulls":17},{"$error":"#N/A"},{"$error":"#N/A"}]
[{"$nulls":17},{"$error":"#N/A"},{"$error":"#N/A"}]
[{"$nulls":17},{"$error":"#N/A"},{"$error":"#N/A"}]
[{"$nulls":17},{"$error":"#N/A"},{"$error":"#N/A"}]
[{"$nulls":17},{"$error":"#N/A"},{"$error":"#N/A"}]
[{"$nulls":17},{"$error":"#N/A"},{"$error":"#N/A"}]
[{"$nulls":17},{"$error":"#N/A"},{"$error":"#N/A"}]
[{"$nulls":17},{"$error":"#N/A"},{"$error":"#N/A"}]
[{"$nulls":17},{"$error":"#N/A"},{"$error":"#N/A"}]
[{"$nulls":17},{"$error":"#N/A"},{"$error":"#N/A"}]
[{"$nulls":17},{"$error":"#N/A"},{"$error":"#N/A"}]
[{"$nulls":17},{"$error":"#N/A"},{"$error":"#N/A"}]
[{"$nulls":17},{"$f":"VLOOKUP(Q69,course1,5,)","v":{"$error":"#N/A"}},{"$f":"VLOOKUP(Q69,course1,2,)","v":{"$error":"#N/A"}}]
[{"$nulls":17},{"$error":"#N/A"},{"$error":"#N/A"}]
[{"$nulls":17},{"$error":"#N/A"},{"$error":"#N/A"}]
[{"$nulls":17},{"$error":"#N/A"},{"$error":"#N/A"}]
[{"$nulls":17},{"$error":"#N/A"},{"$error":"#N/A"}]
[{"$nulls":17},{"$error":"#N/A"},{"$error":"#N/A"}]
[{"$nulls":17},{"$error":"#N/A"},{"$error":"#N/A"}]
[{"$nulls":17},{"$error":"#N/A"},{"$error":"#N/A"}]
[{"$nulls":17},{"$error":"#N/A"},{"$error":"#N/A"}]
[{"$nulls":17},{"$error":"#N/A"},{"$error":"#N/A"}]
[{"$nulls":17},{"$error":"#N/A"},{"$error":"#N/A"}]
[{"$nulls":17},{"$error":"#N/A"},{"$error":"#N/A"}]
[{"$nulls":17},{"$error":"#N/A"},{"$error":"#N/A"}]
[{"$nulls":17},{"$error":"#N/A"},{"$error":"#N/A"}]
[{"$nulls":17},{"$error":"#N/A"},{"$error":"#N/A"}]
[{"$nulls":17},{"$error":"#N/A"},{"$error":"#N/A"}]
[{"$nulls":17},{"$error":"#N/A"},{"$error":"#N/A"}]
[{"$nulls":17},{"$error":"#N/A"},{"$error":"#N/A"}]
[{"$nulls":17},{"$error":"#N/A"},{"$error":"#N/A"}]
[{"$nulls":17},{"$error":"#N/A"},{"$error":"#N/A"}]
[{"$nulls":17},{"$error":"#N/A"},{"$error":"#N/A"}]
[{"$nulls":17},{"$error":"#N/A"},{"$error":"#N/A"}]
[{"$nulls":17},{"$error":"#N/A"},{"$error":"#N/A"}]
[{"$nulls":17},{"$error":"#N/A"},{"$error":"#N/A"}]
[{"$nulls":17},{"$error":"#N/A"},{"$error":"#N/A"}]
[{"$nulls":17},{"$error":"#N/A"},{"$error":"#N/A"}]
[{"$nulls":17},{"$error":"#N/A"},{"$error":"#N/A"}]
[{"$nulls":17},{"$error":"#N/A"},{"$error":"#N/A"}]
[{"$nulls":17},{"$error":"#N/A"},{"$error":"#N/A"}]

{"sheet":"2019 Data Validation","index":1,"n_rows":204,"n_cols":16,"rows_kept":204,"hidden":true}
["Group","Gender","Summer Program Session","University Year Level","Package Code","Package Name","Course A","Course B","Faculty","Citizenship","City","Year","Month","Date","Country Code"]
[null," ",{"$nulls":7},"",{"$nulls":5},"←keep this cell blank!→"]
["Student","Female","June 8-July 8, 2018",1,"CHBE A JULY","Package A - Introduction to Chemical and Biological Engineering","Harnessing Chemistry: An Introduction to Matter, Energy, and Chemical Engineering","Harnessing Nature: An Introduction to Biological Engineering","Applied Science - Chemical and Biological Engineering","Afghanistan","Amsterdam",2001,1,1,"Afghanistan (+93)"]
["Chaperone","Male","July 13-August 13, 2018",2,"CHBE B JULY","Package B - The Engineering of Beverages","The Science and Engineering of Coffee Production","The Science and Engineering of Beer and Wine Production","Applied Science - Chemical and Biological Engineering","Albania","Bangkok",2000,2,2,"Albania (+355)"]
[{"$nulls":3},3,"CHBE C JULY","Package C - Computer Aided Design","Introduction to Numerical Methods and Computer-Assisted Problem-Solving ","Introduction to Process Simulation and Design Tools","Applied Science - Chemical and Biological Engineering","Algeria","Baoding",1999,3,3,"Algeria (+213)"]
[{"$nulls":3},4,"CIVL A JULY","Package A - Computer Software Applications in Civil Engineering","Computer Application in Civil Engineering","Laboratory Projects in Computer Modeling and Analytics ","Applied Science – Civil Engineering","American Samoa","Beijing",1998,4,4,"American Samoa (+1684)"]
[null," ",null,"Recent graduate","CIVL B JULY","Package B - Structural Materials in Civil Engineering ","Civil Engineering Materials ","Laboratory Testing of Structural Materials ","Applied Science – Civil Engineering","Andorra","Bengaluru",1997,5,5,"Andorra (+376)"]
[{"$nulls":3},"Masters","CIVL C JULY","Package C - Advanced Topics in Concrete Technology ","Concrete Technology","Experimental Studies of Structural Concrete Elements ","Applied Science – Electrical and Computer Engineering","Angola","Bonn",1996,6,6,"Angola (+244)"]
[{"$nulls":3},"PhD","ELEC A JULY","Package A - Introduction to Electrical and Computer Engineering","Introduction to Digital Technology and Smart Devices","Introduction to Electric Circuits, Sensors, and Power","Applied Science – Electrical and Computer Engineering","Antigua & Barbuda","Brunswick",1995,7,7,"Antigua and Barbuda (+1268)"]
[{"$nulls":4},"ELEC B JULY","Package B - Renewable Energy and Power Conversion ","Introduction to Renewable Energy ","Electricity and Conversion for Renewable Power","Applied Science – Electrical and Computer Engineering","Argentina","Cardiff",1994,8,8,"Argentina (+54)"]
[{"$nulls":4},"ELEC C JULY","Package C - Communication and Digital Systems ","Communication Systems: Technology Embedded in Daily Life","Introduction to Digital Systems Design with FPGAs","Applied Science – Electrical and Computer Engineering","Armenia","Champaign",1993,9,9,"Armenia (+374)"]
[{"$nulls":4},"ELEC D JULY","Package D - Engineering the Sound of Music ","Music: An Introduction to Electrical & Computer Engineering","Music Laboratory: Hands on Learning","Applied Science – Electrical and Computer Engineering","Australia","Chandigarh",1992,10,10,"Australia (+61)"]
[{"$nulls":4},"ELEC E JULY","Package E - Principles of the Modern Internet ","Algorithms and the World Wide Web","Building Modern Web Applications","Applied Science – Mechanical Engineering","Austria","Changchun",1991,11,11,"Austria (+43)"]
[{"$nulls":4},"MECH A JULY","Package A - Green Buildings and Engineering Design ","Green Building Design","Introduction to Engineering Design & Decision-making","Applied Science – Mechanical Engineering","Azerbaijan","Changhua",1990,12,12,"Azerbaijan (+994)"]
[{"$nulls":4},"MECH B JULY","Package B - Robotics and Challenges from Computational Intelligence","Introduction to Robotics","Roboethics: Challenges from Computational Intelligence","Architecture and Landscape Architecture","Bahamas, The","Changsha",1989,null,13,"Bahamas (+1242)"]
[{"$nulls":4},"ARCH A JULY","Package A - Wood + Architecture","Wood - Building by Nature (Forestry)","Designing with Wood (Architecture)","Architecture and Landscape Architecture","Bangladesh","Chengdu",1988,null,14,"Bangladesh (+880)"]
[{"$nulls":4},"ARCH B JULY","Package B - Urban Landscape Architecture","Green System Planning","Design in the Public Realm","Architecture and Landscape Architecture","Barbados","Chennai",1987,null,15,"Barbados (+1246)"]
[{"$nulls":4},"ARCH C JULY","Package C - Urban Design","Perspectives on City Making","Sustainability by Design","Arts","Belarus","Chiayi",1986,null,16,"Belarus (+375)"]
[{"$nulls":4},"ARTS A JULY","Package A - Global Migration, Local Communities: Asian Canadian Histories","Is Asia in Vancouver: Academic Perspectives","Is Asia in Vancouver: Community-Based Research","Arts","Belgium","Chiba",1985,null,17,"Belgium (+32)"]
[{"$nulls":4},"ARTS B JULY","Package B - Global Journalism, Culture and Communications: Practice and Principles","Culture and Communications ","Global Journalism ","Arts","Belize","Chongqing",1984,null,18,"Belize (+501)"]
[{"$nulls":4},"ARTS C JULY","Package C - The English Language in a Globalized World ","The History and Future of the English Language","How Human Language Works","Arts","Benin","Coimbatore",1983,null,19,"Benin (+229)"]
[{"$nulls":4},"ARTS D JULY","Package D - International Finance, Trade and Politics ","International Trade and Financial Markets","Dynamics of Democracy and Global Uprisings","Arts","Bhutan","Compiegne",1982,null,20,"Bhutan (+975)"]
[{"$nulls":4},"ARTS E JULY","Package E - Environmental Economics and Geographies of the Global Economy","Geographies of the Global Economy","Environmental Economics ","Arts","Bolivia","Copenhagen",1981,null,21,"Bolivia (+591)"]
[{"$nulls":4},"ARTS F JULY","Package F - Melodrama in Action: Singing Opera and Learning Language","Italian for Beginners","Fundamentals of Opera Singing","Arts","Botswana","Dalian",1980,null,22,"Botswana (+267)"]
[{"$nulls":4},"ARTS G JULY","Package G - Computational Linguistics: From Search Engines to Social Media","Linguistics for Natural Language Processing","Computation for Natural Language Processing ","Arts","Brazil","Delft",1979,null,23,"Brazil (+55)"]
[{"$nulls":4},"ARTS H JULY","Package H - From Stage To Screen: How Vancouver ‘plays’ to a Global Audience","From Drama to Theatre: How Does a Play Mean? ","Documentary & the City","Arts","Brunei","Delhi",1978,null,24,"Brunei (+673)"]
[{"$nulls":4},"ARTS I JULY","Package I - Understanding Inequality: The Challenges of Diverse Societies","Inequality and Diversity in Modern Societies ","Practice with Marginalized Diverse Populations","Business","Bulgaria","Dublin",1977,null,25,"Bulgaria (+359)"]
[{"$nulls":4},"BUS A JULY","Package A - International Business Management and International Marketing","International Business Management","International Marketing","Business","Burkina Faso","Fuzhou",1976,null,26,"Burkina Faso (+226)"]
[{"$nulls":4},"BUS B JULY","Package B - Introduction to Marketing & Management and Organizational Behaviour","Introduction to Marketing","Management and Organizational Behaviour","Business","Burma","Greater Noida",1975,null,27,"Myanmar (+95)"]
[{"$nulls":4},"BUS C JULY","Package C - Strategic Management & New Enterprise Development","Strategic Management","New Enterprise Development","Business","Burundi","Guangzhou",1974,null,28,"Burundi (+257)"]
[{"$nulls":4},"BUS D JULY","Package D - Operations and Supply Chain Strategy & Business Analytics","Operations and Supply Chain Strategy","Business Analytics","Community and Regional Planning","Cambodia","Gurgaon",1973,null,29,"Cambodia (+855)"]
[{"$nulls":4},"PLAN A JULY","Package A - Big Data and New Technologies in Cities","Urban Big Data Analysis","Spatial Analysis Using Geographic Information Systems","Community and Regional Planning","Cameroon","Hangzhou",1972,null,30,"Cameroon (+237)"]
[{"$nulls":4},"PLAN B JULY","Package B - The Evolution of Cities: Past, Present, and Future","City-X: Urban Transformation in a Globalized World","Past, Present, and Future: Building from Vancouver’s Multicultural Planning History","Community and Regional Planning","Canada","Harbin",1971,null,31,"Canada (+1)"]
[{"$nulls":4},"PLAN C JULY","Package C - Multiculturalism and the City","Family Recipes and their Business Potential: Designing a Tourism Guide to Family Food Businesses in Vancouver","Past, Present, and Future: Building from Vancouver’s Multicultural Planning History","Dentistry","Cape Verde","Hefei",1970,null,null,"Cape Verde (+238)"]
[{"$nulls":4},"DEN A JULY","Package A - Implications of Dental Caries and Oral Cancer","Dental Caries","Oral Cancer","Education","Cayman Islands","Heverlee (Leuven)",{"$nulls":3},"Cayman Islands (+1345)"]
[{"$nulls":4},"EDU A JULY","Package A - Teaching and Learning English","Applied Linguistics for Teachers","Introduction to Teaching and Learning English","Education","Central African Rep.","Hong Kong",{"$nulls":3},"Central African Republic (+236)"]
[{"$nulls":4},"EDU B JULY","Package B - Early Childhood Education and","Designing High Quality Programs in Early Childhood Settings","Creating Environments to Support Learning in Early Childhood Settings","Education","Chad","Hsinchu",{"$nulls":3},"Chad (+235)"]
[{"$nulls":4},"EDU C JULY","Package C - Classroom Management and Behavioural Assessment","Classroom Management","Assessment and Positive Behavioural Support in School and Community Settings","Education","Chile","Hyderabad",{"$nulls":3},"Chile (+56)"]
[{"$nulls":4},"EDU D JULY","Package D - Food and Well-being - Learning the Connection","Eating Food - An Everyday Experience","Thoughtful Eating in a Globalized World","Education","China","Irkutsk",{"$nulls":3},"China (+86)"]
[{"$nulls":4},"EDU E JULY","Package E - Culture, Creativity, and Learning Technologies ","Digital Media in Arts Education","Learning Technologies and Creativity in the Digital Age","Forestry ","Colombia","Jeddah",{"$nulls":3},"Colombia (+57)"]
[{"$nulls":4},"FOR A JULY","Package A - Forest Management and the Effects of Carbon","An Introduction to the Ecology, Economics and Politics of Carbon","Sustainable Forest Management","Forestry ","Comoros","Jinan",{"$nulls":3},"Comoros (+269)"]
[{"$nulls":4},"FOR B JULY","Package B - Urban Forestry","An Introduction to Urban Forestry","Urban Forestry and Well-being","Kinesiology","Congo, Dem. Rep.","Kattankulathur",{"$nulls":3},"Congo, Dem. Rep. (+243)"]
[{"$nulls":4},"KIN A JULY","Package A - Sport and Exercise Performance","Sport and Exercise Psychology","Clinical Exercise Physiology","Kinesiology","Congo, Repub. of the","Kollam",{"$nulls":3},"Congo, Repub. of the (+242)"]
[{"$nulls":4},"KIN B JULY","Package B - Coaching Science","Foundations of Coaching ","Sport Psychology for Coaching","Kinesiology","Cook Islands","Kuala Lumpur",{"$nulls":3},"Cook Islands (+682)"]
[{"$nulls":4},"KIN C JULY","Package C - Clinical Kinesiology ","Health and Physical Activity Behaviour","Clinical Exercise Physiology","Land and Food Systems ","Costa Rica","Kunming",{"$nulls":3},"Costa Rica (+506)"]
[{"$nulls":4},"LFS A JULY","Package A - Food Science and Sensory Evaluation ","Introduction to Food Science","The Science of Sensory Evaluation","Land and Food Systems ","Cote d'Ivoire","Lanzhou",{"$nulls":3},"Cote d'Ivoire (+225)"]
[{"$nulls":4},"LFS B JULY","Package B - Agribusiness Management","Food and Agribusiness Enterprise Management","Food and Agribusiness Marketing Management","Land and Food Systems ","Croatia","Leeds",{"$nulls":3},"Croatia (+385)"]
[{"$nulls":4},"LFS C JULY","Package C - Nutrition and Healthy Eating ","Essentials of Nutrition","Healthy Cooking and Eating in Canada’s Multicultural Context","Medicine","Cuba","Lisbon",{"$nulls":3},"Cuba (+53)"]
[{"$nulls":4},"MED A JULY","Package A - Clinical Research and Clinical Medicine ","Introduction to Clinical Research in the Sciences","Introduction to Clinical Medicine at the Bedside","Medicine","Cyprus","London",{"$nulls":3},"Cyprus (+357)"]
[{"$nulls":4},"MED B JULY","Package B - Pharmacology and Critical Analysis of Literature","Pharmacology through Case Studies","Primary Literature Analysis in Science & Medicine ","Medicine","Czech Republic","Macau",{"$nulls":3},"Czech Republic (+420)"]
[{"$nulls":4},"MED C JULY","Package C - Anatomy and Radiology: Interactive Learning to Enhance Understanding","Introduction to Anatomy Using a Hands-on Approach","Introduction to Medical Imaging: Understanding Radiologic Normal Anatomy and Disease Using Cutting-Edge Technology","Medicine","Denmark","Madrid",{"$nulls":3},"Denmark (+45)"]
[{"$nulls":4},"MED D JULY","Package D - Biochemistry and Molecular Biology in Human Health, Disease, and the Environment ","Molecular Mechanisms of Disease","Biochemistry and Society: Current Issues","Medicine","Djibouti","Manila",{"$nulls":3},"Djibouti (+253)"]
[{"$nulls":4},"MED E JULY","Package E - The Science Behind the Mind and Pharmacology in Psychiatry","The Science Behind the Mind","Psychiatric Disorders and their Pharmacological Treatments","Medicine","Dominica","Manipal",{"$nulls":3},"Dominica (+1767)"]
[{"$nulls":4},"MED F JULY","Package F - Major Mental Illnesses and Psychotherapy ","Mood Disorders and Psychosis","Introduction to Psychotherapy","Medicine","Dominican Republic","Marseille",{"$nulls":3},"Dominican Republic (+1809)"]
[{"$nulls":4},"MED G JULY","Package G - Introduction to Population and Public Health ","Social Determinants of Health","Introduction to Population and Public Health Practice ","Medicine","East Timor","Monterrey",{"$nulls":3},"East Timor (+670)"]
[{"$nulls":4},"MED H JULY","Package H - Understanding the Recovery and Treatment from Injury and Chronic Disease","Exercise is Medicine","Recovery from Injury","Medicine","Ecuador","Moscow",{"$nulls":3},"Ecuador (+593)"]
[{"$nulls":4},"MED I JULY","Package I - Medical Laboratory Science","Introduction to Medical Laboratory Science","Fundamental Techniques for Clinical and Medical Research Laboratories","Medicine","Egypt","Mumbai",{"$nulls":3},"Egypt (+20)"]
[{"$nulls":4},"MED J JULY","Package J - Anatomical Sciences","Principles of Body Structure and Function","Applied Neuroanatomy ","Medicine","El Salvador","Nairobi",{"$nulls":3},"El Salvador (+503)"]
[{"$nulls":4},"MED K JULY","Package K - Systems Pathophysiology and Principles of Data Science in the Life Sciences","Data Science Applications in the Medical Sciences ","Systems Pathophysiology","Medicine","Equatorial Guinea","Nanjing",{"$nulls":3},"Equatorial Guinea (+240)"]
[{"$nulls":4},"MED L JULY","Package L - Aging","Biological Aspects of Aging","Clinical Aspects of Aging","Medicine","Eritrea","Neemrana (Rajasthan)",{"$nulls":3},"Eritrea (+291)"]
[{"$nulls":4},"MED M JULY","Package M - From Conception to Life Saving Surgery Across the Life Span","Introduction to Women’s Health","Exploring the Specialty of Obstetrics and Gynaecology","Medicine","Estonia","New Delhi",{"$nulls":3},"Estonia (+372)"]
[{"$nulls":4},"NURS A JULY","Package A - Seniors Health and Home Care ","Introduction to Seniors’ Health","Introduction to Caring for Seniors at Home and in the Community","Nursing","Ethiopia","Ningbo",{"$nulls":3},"Ethiopia (+251)"]
[{"$nulls":4},"NURS B JULY","Package B - Health Research Methods ","Introduction to Research Methods in the Health Sciences","Introduction to Visual Methods in Health Research","Nursing","Faroe Islands","Paris",{"$nulls":3},"Faroe Islands (+298)"]
[{"$nulls":4},"PHAR A JULY","Package A - Making Better Medicines ","The Discovery of New Medicines","Personalizing Medicines with Genomics and Biotechnology","Pharmaceutical Sciences","Fiji","Perth",{"$nulls":3},"Fiji (+679)"]
[{"$nulls":4},"CHEM A JULY","Package A - Chemistry: Global Challenges and the Environment ","The Chemical Enterprise and Global Challenges","Environmental Chemistry of the Oceans and Atmosphere","Chemistry","Finland","Puebla",{"$nulls":3},"Finland (+358)"]
[{"$nulls":4},"EOAS A JULY","Package A - The Dynamic Earth and its Beautiful Treasures ","The Dynamic Planet","Earth Treasures","Science – Earth Ocean and Atmospheric Sciences","France","Pune",{"$nulls":3},"France (+33)"]
[{"$nulls":4},"EOAS B JULY","Package B - The Earth’s Oceans, Atmosphere and Climate ","Ocean and Atmosphere Systems","Marine Biodiversity ","Science – Earth Ocean and Atmospheric Sciences","Gabon","Punjab",{"$nulls":3},"Gabon (+241)"]
[{"$nulls":4},"IRES A JULY","Package A - Climate Change, Energy and Society ","Climate Change: Causes, Consequences and Adaptation","Energy for Sustainable Development","Science – Institute for Resources, Environment and Sustainability","Gambia, The","Qingdao",{"$nulls":3},"Gambia, The (+220)"]
[{"$nulls":4},"IRES B JULY","Package B - Sustainable Futures ","Nature Matters - Ecology, the Environment and You","Oceans in the 21st Century","Science – Institute for Resources, Environment and Sustainability","Georgia","Quezon City",{"$nulls":3},"Georgia (+995)"]
[{"$nulls":4},"ISCI A JULY","Package A - Game Theory and Symmetry ","Game Theory","Symmetry","Science – Integrated Sciences","Germany","Quito",{"$nulls":3},"Germany (+49)"]
[{"$nulls":4},"ISCI B JULY","Package B - Exploring Vancouver: Systems and Sustainability (","The Vancouver Environment","The Vancouver Anthrosphere","Science – Integrated Sciences","Ghana","Rajpura",{"$nulls":3},"Ghana (+233)"]
[{"$nulls":9},"Gibraltar","Rio de Janeiro",{"$nulls":3},"Gibraltar (+350)"]
[{"$nulls":9},"Greece","Riyadh",{"$nulls":3},"Greece (+30)"]
[{"$nulls":9},"Greenland","Rome",{"$nulls":3},"Greenland (+299)"]
[{"$nulls":9},"Grenada","Salzburg",{"$nulls":3},"Grenada (+1473)"]
[{"$nulls":9},"Guam","San Andrés Cholula",{"$nulls":3},"Guam (+1671)"]
[{"$nulls":9},"Guatemala","San Nicolás, NL",{"$nulls":3},"Guatemala (+502)"]
[{"$nulls":9},"Guinea","Sao Paulo",{"$nulls":3},"Guinea (+224)"]
[{"$nulls":9},"Guinea-Bissau","Semenyih",{"$nulls":3},"Guinea-Bissau (+245)"]
[{"$nulls":9},"Guyana","Seoul",{"$nulls":3},"Guyana (+592)"]
[{"$nulls":9},"Haiti","Shaanxi",{"$nulls":3},"Haiti (+509)"]
[{"$nulls":9},"Honduras","Shandong",{"$nulls":3},"Honduras (+504)"]
[{"$nulls":9},"Hong Kong","Shanghai",{"$nulls":3},"Hong Kong (+852)"]
[{"$nulls":9},"Hungary","Shenyang",{"$nulls":3},"Hungary (+36)"]
[{"$nulls":9},"Iceland","Shenzhen",{"$nulls":3},"Iceland (+354)"]
[{"$nulls":9},"India","Sibiu",{"$nulls":3},"India (+91)"]
[{"$nulls":9},"Indonesia","Singapore",{"$nulls":3},"Indonesia (+62)"]
[{"$nulls":9},"Iran","St. Petersburg",{"$nulls":3},"Iran (+98)"]
[{"$nulls":9},"Iraq","Suzhou",{"$nulls":3},"Iraq (+964)"]
[{"$nulls":9},"Ireland","Sydney",{"$nulls":3},"Ireland (+353)"]
[{"$nulls":9},"Israel","Taichung",{"$nulls":3},"Israel (+972)"]
[{"$nulls":9},"Italy","Tainan",{"$nulls":3},"Italy (+39)"]
[{"$nulls":9},"Jamaica","Taipei",{"$nulls":3},"Jamaica (+1876)"]
[{"$nulls":9},"Japan","Tangshan",{"$nulls":3},"Japan (+81)"]
[{"$nulls":9},"Jersey","Taoyuan",{"$nulls":3},"Jersey (+44-1534)"]
[{"$nulls":9},"Jordan","Tehran",{"$nulls":3},"Jordan (+962)"]
[{"$nulls":9},"Kazakhstan","Tianjin",{"$nulls":3},"Kazakhstan (+7)"]
[{"$nulls":9},"Kenya","Tokyo",{"$nulls":3},"Kenya (+254)"]
[{"$nulls":9},"Kiribati","Trento",{"$nulls":3},"Kiribati (+686)"]
[{"$nulls":9},"Kuwait","Trichy",{"$nulls":3},"Kuwait (+965)"]
[{"$nulls":9},"Kyrgyzstan","Vancouver",{"$nulls":3},"Kyrgyzstan (+996)"]
[{"$nulls":9},"Laos","Warsaw",{"$nulls":3},"Laos (+856)"]
[{"$nulls":9},"Latvia","Wenzhou",{"$nulls":3},"Latvia (+371)"]
[{"$nulls":9},"Lebanon","Wollongong",{"$nulls":3},"Lebanon (+961)"]
[{"$nulls":9},"Lesotho","Wuhan",{"$nulls":3},"Lesotho (+266)"]
[{"$nulls":9},"Liberia","Wuhu",{"$nulls":3},"Liberia (+231)"]
[{"$nulls":9},"Libya","Wuxi",{"$nulls":3},"Libya (+218)"]
[{"$nulls":9},"Liechtenstein","Xiamen",{"$nulls":3},"Liechtenstein (+423)"]
[{"$nulls":9},"Lithuania","Xi'an",{"$nulls":3},"Lithuania (+370)"]
[{"$nulls":9},"Luxembourg","Xuzhou",{"$nulls":3},"Luxembourg (+352)"]
[{"$nulls":9},"Macau","Yangling",{"$nulls":3},"Macau (+853)"]
[{"$nulls":9},"Macedonia","Yanji",{"$nulls":3},"Macedonia (+389)"]
[{"$nulls":9},"Madagascar","Yilan",{"$nulls":3},"Madagascar (+261)"]
[{"$nulls":9},"Malawi","Yokohama",{"$nulls":3},"Malawi (+265)"]
[{"$nulls":9},"Malaysia","Zhenjiang",{"$nulls":3},"Malaysia (+60)"]
[{"$nulls":9},"Maldives","Zhuhai",{"$nulls":3},"Maldives (+960)"]
[{"$nulls":9},"Mali",{"$nulls":4},"Mali (+223)"]
[{"$nulls":9},"Malta",{"$nulls":4},"Malta (+356)"]
[{"$nulls":9},"Marshall Islands",{"$nulls":4},"Marshall Islands (+692)"]
[{"$nulls":9},"Martinique",{"$nulls":4},"Martinique (+596)"]
[{"$nulls":9},"Mauritania",{"$nulls":4},"Mauritania (+222)"]
[{"$nulls":9},"Mauritius",{"$nulls":4},"Mauritius (+230)"]
[{"$nulls":9},"Mexico",{"$nulls":4},"Mexico (+52)"]
[{"$nulls":9},"Micronesia, Fed. St.",{"$nulls":4},"Micronesia, Fed. St. (+691)"]
[{"$nulls":9},"Moldova",{"$nulls":4},"Moldova (+373)"]
[{"$nulls":9},"Monaco",{"$nulls":4},"Monaco (+377)"]
[{"$nulls":9},"Mongolia",{"$nulls":4},"Mongolia (+976)"]
[{"$nulls":9},"Morocco",{"$nulls":4},"Morocco (+212)"]
[{"$nulls":9},"Mozambique",{"$nulls":4},"Mozambique (+258)"]
[{"$nulls":9},"Namibia",{"$nulls":4},"Namibia (+264)"]
[{"$nulls":9},"Nauru",{"$nulls":4},"Nauru (+674)"]
[{"$nulls":9},"Nepal",{"$nulls":4},"Nepal (+977)"]
[{"$nulls":9},"Netherlands",{"$nulls":4},"Netherlands (+31)"]
[{"$nulls":9},"New Zealand",{"$nulls":4},"New Zealand (+64)"]
[{"$nulls":9},"Nicaragua",{"$nulls":4},"Nicaragua (+505)"]
[{"$nulls":9},"Niger",{"$nulls":4},"Niger (+227)"]
[{"$nulls":9},"Nigeria",{"$nulls":4},"Nigeria (+234)"]
[{"$nulls":9},"North Korea",{"$nulls":4},"North Korea (+850)"]
[{"$nulls":9},"Norway",{"$nulls":4},"Norway (+47)"]
[{"$nulls":9},"Oman",{"$nulls":4},"Oman (+968)"]
[{"$nulls":9},"Pakistan",{"$nulls":4},"Pakistan (+92)"]
[{"$nulls":9},"Palau",{"$nulls":4},"Palau (+680)"]
[{"$nulls":9},"Panama",{"$nulls":4},"Panama (+507)"]
[{"$nulls":9},"Papua New Guinea",{"$nulls":4},"Papua New Guinea (+675)"]
[{"$nulls":9},"Paraguay",{"$nulls":4},"Paraguay (+595)"]
[{"$nulls":9},"Peru",{"$nulls":4},"Peru (+51)"]
[{"$nulls":9},"Philippines",{"$nulls":4},"Philippines (+63)"]
[{"$nulls":9},"Poland",{"$nulls":4},"Poland (+48)"]
[{"$nulls":9},"Portugal",{"$nulls":4},"Portugal (+351)"]
[{"$nulls":9},"Puerto Rico",{"$nulls":4},"Puerto Rico (+1787)"]
[{"$nulls":9},"Qatar",{"$nulls":4},"Qatar (+974)"]
[{"$nulls":9},"Romania",{"$nulls":4},"Romania (+40)"]
[{"$nulls":9},"Russia",{"$nulls":4},"Russia (+7)"]
[{"$nulls":9},"Rwanda",{"$nulls":4},"Rwanda (+250)"]
[{"$nulls":9},"Saint Kitts & Nevis",{"$nulls":4},"Saint Kitts & Nevis (+1869)"]
[{"$nulls":9},"Saint Lucia",{"$nulls":4},"Saint Lucia (+1758)"]
[{"$nulls":9},"Saint Vincent and the Grenadines",{"$nulls":4},"Saint Vincent and the Grenadines (+1784)"]
[{"$nulls":9},"Samoa",{"$nulls":4},"Samoa (+685)"]
[{"$nulls":9},"San Marino",{"$nulls":4},"San Marino (+378)"]
[{"$nulls":9},"Sao Tome & Principe",{"$nulls":4},"Sao Tome & Principe (+239)"]
[{"$nulls":9},"Saudi Arabia",{"$nulls":4},"Saudi Arabia (+966)"]
[{"$nulls":9},"Senegal",{"$nulls":4},"Senegal (+221)"]
[{"$nulls":9},"Serbia",{"$nulls":4},"Serbia (+381)"]
[{"$nulls":9},"Seychelles",{"$nulls":4},"Seychelles (+248)"]
[{"$nulls":9},"Sierra Leone",{"$nulls":4},"Sierra Leone (+232)"]
[{"$nulls":9},"Singapore",{"$nulls":4},"Singapore (+65)"]
[{"$nulls":9},"Slovakia",{"$nulls":4},"Slovakia (+421)"]
[{"$nulls":9},"Slovenia",{"$nulls":4},"Slovenia (+386)"]
[{"$nulls":9},"Solomon Islands",{"$nulls":4},"Solomon Islands (+677)"]
[{"$nulls":9},"Somalia",{"$nulls":4},"Somalia (+252)"]
[{"$nulls":9},"South Africa",{"$nulls":4},"South Africa (+27)"]
[{"$nulls":9},"South Korea",{"$nulls":4},"South Korea (+82)"]
[{"$nulls":9},"Spain",{"$nulls":4},"Spain (+34)"]
[{"$nulls":9},"Sri Lanka",{"$nulls":4},"Sri Lanka (+94)"]
[{"$nulls":9},"Sudan",{"$nulls":4},"Sudan (+249)"]
[{"$nulls":9},"Suriname",{"$nulls":4},"Suriname (+597)"]
[{"$nulls":9},"Swaziland",{"$nulls":4},"Swaziland (+268)"]
[{"$nulls":9},"Sweden",{"$nulls":4},"Sweden (+46)"]
[{"$nulls":9},"Switzerland",{"$nulls":4},"Switzerland (+41)"]
[{"$nulls":9},"Syria",{"$nulls":4},"Syria (+963)"]
[{"$nulls":9},"Taiwan",{"$nulls":4},"Taiwan (+886)"]
[{"$nulls":9},"Tajikistan",{"$nulls":4},"Tajikistan (+992)"]
[{"$nulls":9},"Tanzania",{"$nulls":4},"Tanzania (+255)"]
[{"$nulls":9},"Thailand",{"$nulls":4},"Thailand (+66)"]
[{"$nulls":9},"Togo",{"$nulls":4},"Togo (+228)"]
[{"$nulls":9},"Tonga",{"$nulls":4},"Tonga (+676)"]
[{"$nulls":9},"Trinidad & Tobago",{"$nulls":4},"Trinidad and Tobago (+1868)"]
[{"$nulls":9},"Tunisia",{"$nulls":4},"Tunisia (+216)"]
[{"$nulls":9},"Turkey",{"$nulls":4},"Turkey (+90)"]
[{"$nulls":9},"Turkmenistan",{"$nulls":4},"Turkmenistan (+993)"]
[{"$nulls":9},"Tuvalu",{"$nulls":4},"Tuvalu (+688)"]
[{"$nulls":9},"Uganda",{"$nulls":4},"Uganda (+256)"]
[{"$nulls":9},"Ukraine",{"$nulls":4},"Ukraine (+380)"]
[{"$nulls":9},"United Arab Emirates",{"$nulls":4},"United Arab Emirates (+971)"]
[{"$nulls":9},"United Kingdom",{"$nulls":4},"United Kingdom (+44)"]
[{"$nulls":9},"United States",{"$nulls":4},"United States (+1)"]
[{"$nulls":9},"Uruguay",{"$nulls":4},"Uruguay (+598)"]
[{"$nulls":9},"Uzbekistan",{"$nulls":4},"Uzbekistan (+998)"]
[{"$nulls":9},"Vanuatu",{"$nulls":4},"Vanuatu (+678)"]
[{"$nulls":9},"Venezuela",{"$nulls":4},"Venezuela (+58)"]
[{"$nulls":9},"Vietnam",{"$nulls":4},"Vietnam (+84)"]
[{"$nulls":9},"Yemen",{"$nulls":4},"Yemen (+967)"]
[{"$nulls":9},"Zambia",{"$nulls":4},"Zambia (+260)"]
[{"$nulls":9},"Zimbabwe",{"$nulls":4},"Zimbabwe (+263)"]